bitfinex/quotes_BTCUSD_20250403
["timestamp","ask_amount","ask_price","bid_price","bid_amount"]
[1743698523019,0.012175,82133.0,82127.0,0.12290297]
[1743698523020,0.255699,82128.0,82127.0,0.12290297]
[1743698523419,0.243513,82132.0,82127.0,0.12290297]
[1743698523635,0.288761,82149.0,82141.0,0.012174]
[1743698523843,0.243477,82143.0,82142.0,0.12290297]
[1743698524625,0.243475,82144.0,82142.0,0.12290297]
[1743698524830,0.24393558,82144.0,82142.0,0.12290297]
[1743698525031,0.00046058,82144.0,82142.0,0.12290297]
[1743698525193,0.00046058,82144.0,82143.0,0.25565]
[1743698525394,0.00046058,82144.0,82143.0,0.37855297]
[1743698526078,0.00046058,82144.0,82143.0,0.42635297]
[1743698526543,0.00046058,82144.0,82143.0,0.78089382]
[1743698526722,5.8e-07,82144.0,82143.0,0.82709382]
[1743698526914,5.8e-07,82144.0,82143.0,0.86111583]
[1743698528245,5.8e-07,82144.0,82143.0,0.83611583]
[1743698530242,5.8e-07,82144.0,82143.0,0.82709382]
[1743698531230,5.8e-07,82144.0,82143.0,0.77929382]
[1743698531429,5.8e-07,82144.0,82143.0,0.92445382]
[1743698531633,5.8e-07,82144.0,82143.0,0.86371297]
[1743698532059,5.8e-07,82144.0,82143.0,0.52371297]
[1743698532466,5.8e-07,82144.0,82143.0,0.26806297]
[1743698532666,5.8e-07,82144.0,82143.0,0.28023597]
[1743698532900,5.8e-07,82144.0,82143.0,0.13507597]
[1743698533094,5.8e-07,82144.0,82143.0,0.12290297]
[1743698533317,0.243491,82139.0,82131.0,0.14516]
[1743698533469,0.243493,82138.0,82134.0,0.012175]
[1743698533673,0.243493,82138.0,82135.0,0.12290297]
[1743698534269,0.243496,82137.0,82135.0,0.12290297]
[1743698536076,0.243482,82142.0,82135.0,0.36640197]
[1743698536279,5.8e-07,82144.0,82140.0,0.012174]
[1743698536482,0.243483,82141.0,82140.0,0.12290297]
[1743698536958,5.8e-07,82144.0,82141.0,0.243482]
[1743698537163,5.8e-07,82144.0,82143.0,0.012173]
[1743698537313,5.8e-07,82144.0,82143.0,0.37855297]
[1743698537871,5.8e-07,82144.0,82143.0,0.52371297]
[1743698538118,5.8e-07,82144.0,82143.0,0.53825382]
[1743698542336,5.8e-07,82144.0,82143.0,0.52371297]
[1743698543712,5.8e-07,82144.0,82143.0,0.52367297]
[1743698547787,5.8e-07,82144.0,82143.0,0.12290297]
[1743698548196,5.8e-07,82144.0,82143.0,0.37855297]
[1743698549880,5.8e-07,82144.0,82143.0,0.52367297]
[1743698550708,0.24347458,82144.0,82143.0,0.26802297]
[1743698550892,0.25564758,82144.0,82143.0,0.12290297]
[1743698551023,0.243492,82139.0,82133.0,0.012175]
[1743698551219,0.243483,82142.0,82138.0,0.243491]
[1743698551589,0.243483,82142.0,82139.0,0.36639197]
[1743698551791,0.243484,82141.0,82139.0,0.12290297]
[1743698551995,0.01217358,82144.0,82140.0,0.243486]
[1743698551996,0.24347558,82144.0,82140.0,0.243486]
[1743698552257,0.24346,82149.0,82141.0,0.12290297]
[1743698552476,0.24348,82142.0,82141.0,0.12290297]
[1743698553127,0.243459,82150.0,82142.0,0.012174]
[1743698553294,0.41603966,82170.0,82122.0,0.365307]
[1743698553295,0.0476,82164.0,82151.0,0.012172]
[1743698553520,0.004,82169.0,82160.0,0.255598]
[1743698553734,0.004,82169.0,82161.0,0.12290297]
[1743698553735,0.243421,82162.0,82161.0,0.12290297]
[1743698555562,0.243418,82163.0,82161.0,0.12290297]
[1743698555841,0.243421,82162.0,82161.0,0.12290297]
[1743698556067,0.00013812,82164.0,82163.0,0.243418]
[1743698556219,0.00013812,82164.0,82163.0,0.12290297]
[1743698556396,0.24355312,82164.0,82163.0,0.12290297]
[1743698556601,0.012171,82160.0,82139.0,0.012174]
[1743698556799,0.243453,82152.0,82146.0,0.243466]
[1743698557025,0.012171,82162.0,82150.0,0.255628]
[1743698557261,0.012171,82162.0,82151.0,0.12290297]
[1743698557262,0.012171,82160.0,82151.0,0.12290297]
[1743698557469,0.243445,82154.0,82151.0,0.12290297]
[1743698558212,0.243442,82155.0,82151.0,0.12290297]
[1743698558409,0.243442,82155.0,82151.0,0.36635697]
[1743698558816,0.243442,82155.0,82151.0,0.12290297]
[1743698559218,0.243446,82154.0,82151.0,0.12290297]
[1743698559557,0.243434,82158.0,82151.0,0.12290297]
[1743698560101,0.012171,82162.0,82155.0,0.012172]
[1743698560304,0.243439,82156.0,82155.0,0.12290297]
[1743698560576,0.012171,82161.0,82138.0,0.243492]
[1743698560577,0.012173,82144.0,82138.0,0.243492]
[1743698560756,0.243474,82145.0,82141.0,0.243483]
[1743698561025,0.012174,82140.0,82132.0,0.14508]
[1743698561195,0.012174,82140.0,82133.0,0.36640897]
[1743698561396,0.243504,82135.0,82133.0,0.12290297]
[1743698561600,0.243504,82135.0,82125.0,0.24353]
[1743698561601,0.243515,82131.0,82126.0,0.255701]
[1743698561806,0.0454,82138.0,82130.0,0.243516]
[1743698562137,0.255647,82144.0,82135.0,0.012175]
[1743698562333,0.255647,82144.0,82129.0,0.012175]
[1743698562334,0.012173,82148.0,82136.0,0.13507697]
[1743698562452,0.352173,82149.0,82139.0,0.012174]
[1743698562653,0.012172,82150.0,82141.0,0.012174]
[1743698562847,0.289245,82154.0,82141.0,0.012174]
[1743698562848,0.24345,82153.0,82145.0,0.012173]
[1743698563100,0.243436,82157.0,82151.0,0.243454]
[1743698563299,0.24344,82156.0,82152.0,0.243451]
[1743698564671,0.24344,82156.0,82153.0,0.243447]
[1743698564879,0.243436,82157.0,82153.0,0.243447]
[1743698565227,0.00013809,82158.0,82157.0,0.255607]
[1743698565461,0.00013809,82158.0,82154.0,0.37851897]
[1743698565662,0.00013809,82158.0,82155.0,0.243439]
[1743698565874,0.00013809,82158.0,82155.0,0.36634197]
[1743698566733,0.00013809,82158.0,82157.0,0.255607]
[1743698566940,0.00013809,82158.0,82157.0,0.37850997]
[1743698567467,0.243416,82164.0,82159.0,0.255598]
[1743698567668,0.255588,82164.0,82159.0,0.12290297]
[1743698567898,0.243443,82155.0,82151.0,0.243453]
[1743698568073,0.243439,82157.0,82152.0,0.12290297]
[1743698569083,0.243447,82154.0,82152.0,0.12290297]
[1743698569254,0.24343,82159.0,82154.0,0.243444]
[1743698569459,0.243436,82158.0,82154.0,0.12290297]
[1743698569814,0.243439,82156.0,82154.0,0.12290297]
[1743698570198,0.012171,82162.0,82154.0,0.12290297]
[1743698570449,0.01217,82168.0,82154.0,0.12290297]
[1743698570655,0.243421,82162.0,82154.0,0.12290297]
[1743698571446,0.255588,82163.0,82159.0,0.243429]
[1743698571652,0.255588,82163.0,82159.0,0.24343]
[1743698571852,0.255588,82163.0,82158.0,0.243433]
[1743698572051,0.012169,82171.0,82165.0,0.01217]
[1743698572263,0.004,82169.0,82167.0,0.243405]
[1743698573114,0.004,82169.0,82166.0,0.243409]
[1743698573319,0.004,82169.0,82167.0,0.243405]
[1743698573900,0.004,82169.0,82168.0,0.255573]
[1743698574906,0.004,82169.0,82168.0,0.37847597]
[1743698575988,0.004,82169.0,82168.0,0.58695682]
[1743698577091,0.243342,82189.0,82185.0,0.243353]
[1743698577267,0.243335,82192.0,82186.0,0.12290297]
[1743698577680,0.012166,82192.0,82186.0,0.13506997]
[1743698577823,0.012166,82191.0,82186.0,0.12290297]
[1743698578040,0.243343,82189.0,82186.0,0.12290297]
[1743698578284,0.012165,82197.0,82189.0,0.24334]
[1743698578483,0.00013809,82192.0,82190.0,0.243335]
[1743698579252,0.24347209,82192.0,82187.0,0.255512]
[1743698579485,0.24347209,82192.0,82188.0,0.12290297]
[1743698579728,0.24347209,82192.0,82189.0,0.243341]
[1743698579964,0.24347209,82192.0,82189.0,0.12290297]
[1743698580203,0.24347209,82192.0,82185.0,0.24335]
[1743698580204,0.243345,82188.0,82185.0,0.24335]
[1743698580461,0.243348,82187.0,82186.0,0.12290297]
[1743698580967,0.24335,82187.0,82180.0,0.00778]
[1743698581205,0.243335,82191.0,82186.0,0.36625197]
[1743698581687,0.243335,82191.0,82187.0,0.243346]
[1743698581921,0.24334,82190.0,82186.0,0.12290297]
[1743698582174,0.24334,82190.0,82187.0,0.243347]
[1743698582416,0.24334,82190.0,82186.0,0.12290297]
[1743698582664,0.243347,82187.0,82181.0,0.243365]
[1743698582922,0.255533,82181.0,82180.0,0.00778]
[1743698583159,0.243365,82181.0,82180.0,0.00778]
[1743698583657,0.24336,82183.0,82180.0,0.00778]
[1743698584128,0.24334,82190.0,82185.0,0.243351]
[1743698584373,0.012166,82195.0,82188.0,0.012167]
[1743698584374,0.34,82195.0,82188.0,0.012167]
[1743698584607,0.24347109,82192.0,82188.0,0.12290297]
[1743698584837,0.243362,82183.0,82180.0,0.00778]
[1743698585086,0.255533,82181.0,82180.0,0.13068297]
[1743698585346,0.255533,82181.0,82180.0,0.00778]
[1743698586826,0.25552,82185.0,82180.0,0.00778]
[1743698587066,0.243365,82181.0,82180.0,0.00778]
[1743698588000,0.243363,82182.0,82180.0,0.00778]
[1743698588778,0.255523,82184.0,82180.0,0.00778]
[1743698588779,0.243359,82183.0,82180.0,0.00778]
[1743698589045,0.243356,82184.0,82180.0,0.00778]
[1743698589298,0.24347109,82192.0,82187.0,0.255513]
[1743698589530,0.243345,82188.0,82182.0,0.012168]
[1743698589797,0.243363,82182.0,82180.0,0.13068297]
[1743698590057,0.012167,82187.0,82180.0,0.37404897]
[1743698590296,0.012167,82187.0,82180.0,0.13068297]
[1743698590297,0.243363,82182.0,82180.0,0.13068297]
[1743698590543,0.243365,82181.0,82180.0,0.00778]
[1743698590755,0.243363,82182.0,82180.0,0.00778]
[1743698591201,0.255533,82181.0,82180.0,0.00778]
[1743698592808,0.243365,82181.0,82180.0,0.00778]
[1743698592993,0.255533,82181.0,82180.0,0.00778]
[1743698593338,0.243352,82186.0,82180.0,0.019948]
[1743698593563,0.243357,82184.0,82180.0,0.251147]
[1743698593804,0.243357,82184.0,82181.0,0.243364]
[1743698593970,0.243353,82185.0,82180.0,0.251147]
[1743698594148,0.243352,82186.0,82182.0,0.24336]
[1743698594344,0.243342,82189.0,82183.0,0.243358]
[1743698594562,0.004,82199.0,82191.0,0.255501]
[1743698595047,0.243317,82198.0,82191.0,0.255501]
[1743698595212,0.004,82199.0,82191.0,0.37840397]
[1743698597198,0.243317,82198.0,82191.0,0.37840397]
[1743698597468,0.247312,82199.0,82191.0,0.12290297]
[1743698597469,0.004,82199.0,82191.0,0.12290297]
[1743698597675,0.004,82199.0,82188.0,0.012167]
[1743698597676,0.243344,82189.0,82184.0,0.243354]
[1743698597867,0.243346,82188.0,82184.0,0.36625797]
[1743698598073,0.243343,82189.0,82185.0,0.24335]
[1743698598275,0.243336,82191.0,82186.0,0.243349]
[1743698598506,0.243336,82191.0,82187.0,0.243346]
[1743698598704,0.004,82199.0,82191.0,0.243335]
[1743698598833,0.24332,82197.0,82191.0,0.37840397]
[1743698599045,0.243322,82196.0,82191.0,0.37840397]
[1743698599645,0.24332,82197.0,82191.0,0.12290297]
[1743698599846,0.012166,82190.0,82161.0,0.486845]
[1743698600047,0.243356,82184.0,82181.0,0.12290297]
[1743698600251,0.24335,82187.0,82181.0,0.12290297]
[1743698600459,0.012166,82190.0,82181.0,0.12290297]
[1743698600654,0.243355,82185.0,82181.0,0.36626497]
[1743698600864,0.243362,82182.0,82181.0,0.12290297]
[1743698601311,0.255525,82184.0,82181.0,0.12290297]
[1743698601312,0.235578,82184.0,82181.0,0.36626697]
[1743698601559,0.235578,82184.0,82181.0,0.12290297]
[1743698601765,0.243362,82182.0,82181.0,0.12290297]
[1743698602534,0.24338,82176.0,82172.0,0.24339]
[1743698602741,0.243388,82173.0,82172.0,0.12290297]
[1743698603298,0.243385,82176.0,82172.0,0.12290297]
[1743698603684,0.243383,82175.0,82172.0,0.36629197]
[1743698603880,0.243385,82176.0,82173.0,0.243386]
[1743698604080,0.243385,82176.0,82172.0,0.36629197]
[1743698604282,0.243376,82178.0,82173.0,0.243386]
[1743698604486,0.24338,82178.0,82172.0,0.12290297]
[1743698604693,0.243385,82175.0,82172.0,0.36629397]
[1743698605095,0.243385,82176.0,82173.0,0.243388]
[1743698605368,0.24338,82178.0,82173.0,0.255557]
[1743698605569,0.24338,82178.0,82174.0,0.243385]
[1743698605754,0.243379,82177.0,82173.0,0.255557]
[1743698606130,0.24338,82176.0,82173.0,0.243388]
[1743698606336,0.243379,82177.0,82173.0,0.243388]
[1743698606527,0.24338,82176.0,82173.0,0.243428]
[1743698606749,0.243385,82175.0,82173.0,4e-05]
[1743698607056,0.24338,82176.0,82173.0,0.243428]
[1743698607550,0.24338,82176.0,82173.0,4e-05]
[1743698607946,0.243383,82175.0,82173.0,4e-05]
[1743698608149,0.243377,82177.0,82173.0,0.243428]
[1743698608344,0.24338,82176.0,82174.0,0.243383]
[1743698608544,0.24338,82176.0,82173.0,0.243427]
[1743698608748,0.24338,82176.0,82173.0,4e-05]
[1743698608958,0.243385,82174.0,82173.0,4e-05]
[1743698609684,0.255554,82174.0,82173.0,4e-05]
[1743698611277,0.595554,82174.0,82173.0,4e-05]
[1743698611476,0.644054,82174.0,82173.0,4e-05]
[1743698613957,0.65753361,82174.0,82173.0,4e-05]
[1743698614145,0.78043129,82174.0,82173.0,4e-05]
[1743698615140,1.31682229,82174.0,82173.0,4e-05]
[1743698616324,1.05274261,82174.0,82173.0,4e-05]
[1743698616524,1.17564558,82174.0,82173.0,4e-05]
[1743698617718,1.28064558,82174.0,82173.0,4e-05]
[1743698618122,1.29518643,82174.0,82173.0,4e-05]
[1743698619231,1.16912658,82174.0,82173.0,4e-05]
[1743698619428,1.2431525,82174.0,82173.0,4e-05]
[1743698619630,1.20263958,82174.0,82173.0,4e-05]
[1743698619876,0.97973661,82174.0,82173.0,4e-05]
[1743698620324,0.244385,82174.0,82173.0,4e-05]
[1743698620522,0.256554,82174.0,82173.0,4e-05]
[1743698620914,1.61212397,82174.0,82173.0,4e-05]
[1743698621123,1.73502165,82174.0,82173.0,4e-05]
[1743698621671,1.70381665,82174.0,82173.0,4e-05]
[1743698621871,1.48939697,82174.0,82173.0,4e-05]
[1743698622081,1.45202197,82174.0,82173.0,4e-05]
[1743698622301,1.45102197,82174.0,82173.0,4e-05]
[1743698623523,1.25836597,82174.0,82173.0,4e-05]
[1743698623724,0.595554,82174.0,82173.0,4e-05]
[1743698624715,0.71845168,82174.0,82173.0,4e-05]
[1743698624910,1.64819068,82174.0,82173.0,4e-05]
[1743698625120,1.41688968,82174.0,82173.0,4e-05]
[1743698625343,1.20642968,82174.0,82173.0,4e-05]
[1743698625807,1.0443,82174.0,82173.0,4e-05]
[1743698626008,0.595554,82174.0,82173.0,4e-05]
[1743698634595,0.738594,82174.0,82173.0,4e-05]
[1743698636000,1.597893,82174.0,82173.0,4e-05]
[1743698636203,1.31712597,82174.0,82173.0,4e-05]
[1743698636591,0.595554,82174.0,82173.0,4e-05]
[1743698636952,0.938438,82174.0,82173.0,4e-05]
[1743698637162,0.866719,82174.0,82173.0,4e-05]
[1743698637525,0.595554,82174.0,82173.0,4e-05]
[1743698638900,0.575554,82174.0,82173.0,4e-05]
[1743698640574,0.223385,82174.0,82173.0,4e-05]
[1743698640786,0.235554,82174.0,82173.0,4e-05]
[1743698641003,0.223385,82174.0,82173.0,4e-05]
[1743698641201,0.255554,82174.0,82173.0,4e-05]
[1743698641812,0.243385,82174.0,82173.0,4e-05]
[1743698642040,0.255554,82174.0,82173.0,4e-05]
[1743698642175,0.243385,82174.0,82173.0,4e-05]
[1743698642800,0.255554,82174.0,82173.0,4e-05]
[1743698643990,0.84523016,82174.0,82173.0,4e-05]
[1743698644227,0.96813313,82174.0,82173.0,4e-05]
[1743698644429,0.59562,82153.0,82134.0,0.0488]
[1743698644628,0.968258,82153.0,82134.0,0.0488]
[1743698644830,0.74054,82153.0,82134.0,0.060975]
[1743698645069,0.950212,82153.0,82134.0,0.0488]
[1743698645319,0.255691,82130.0,82129.0,0.0076129]
[1743698645896,0.255691,82130.0,82129.0,0.00807348]
[1743698646101,0.984645,82130.0,82129.0,0.00807348]
[1743698646423,0.73813482,82130.0,82129.0,0.00807348]
[1743698646624,2.4936495,82130.0,82129.0,0.00807348]
[1743698646838,2.4936495,82130.0,82129.0,0.00046058]
[1743698647448,2.52768546,82130.0,82129.0,5.8e-07]
[1743698647578,1.94690846,82130.0,82129.0,5.8e-07]
[1743698648167,1.98361804,82130.0,82129.0,5.8e-07]
[1743698648928,1.94690846,82130.0,82129.0,5.8e-07]
[1743698649265,1.99550846,82130.0,82129.0,5.8e-07]
[1743698650513,1.87261078,82130.0,82129.0,5.8e-07]
[1743698652777,1.87561078,82130.0,82129.0,5.8e-07]
[1743698653134,1.87761078,82130.0,82129.0,5.8e-07]
[1743698654476,0.595747,82112.0,82111.0,0.00404]
[1743698654683,0.86360997,82112.0,82111.0,0.00417809]
[1743698654862,1.21023697,82112.0,82111.0,0.00417809]
[1743698655064,1.13190697,82112.0,82111.0,0.00417809]
[1743698655262,1.08887697,82112.0,82111.0,0.00417809]
[1743698655481,0.966771,82112.0,82111.0,0.00417809]
[1743698655866,0.821811,82112.0,82111.0,0.00417809]
[1743698656122,0.966771,82112.0,82111.0,0.00417809]
[1743698656489,0.740707,82112.0,82111.0,0.00417809]
[1743698656715,0.917431,82112.0,82111.0,0.00417809]
[1743698656891,0.772471,82112.0,82111.0,0.00417809]
[1743698657086,0.917431,82112.0,82111.0,0.00417809]
[1743698659322,1.04033397,82112.0,82111.0,9e-08]
[1743698659538,0.86360997,82112.0,82111.0,9e-08]
[1743698660643,0.740707,82112.0,82111.0,9e-08]
[1743698661588,0.86360997,82112.0,82111.0,9e-08]
[1743698664193,0.87815082,82112.0,82111.0,9e-08]
[1743698664424,1.0060485,82112.0,82111.0,9e-08]
[1743698664644,1.0523485,82112.0,82111.0,9e-08]
[1743698664842,1.0773485,82112.0,82111.0,9e-08]
[1743698665813,0.8216015,82112.0,82111.0,9e-08]
[1743698666036,1.0773485,82112.0,82111.0,9e-08]
[1743698666664,1.0783485,82112.0,82111.0,9e-08]
[1743698667273,0.82316,82108.0,82107.0,9e-08]
[1743698667477,0.59584,82082.0,82066.0,0.0491]
[1743698667681,0.7408,82082.0,82081.0,0.00404605]
[1743698668115,1.486412,82082.0,82081.0,0.00404605]
[1743698668269,1.141069,82082.0,82081.0,0.00404605]
[1743698668473,1.061774,82082.0,82081.0,0.00404605]
[1743698669039,1.07111645,82082.0,82081.0,0.00404605]
[1743698669720,0.75014245,82082.0,82081.0,0.00404605]
[1743698669923,0.8862075,82082.0,82081.0,0.00404605]
[1743698670067,1.3975499,82082.0,82081.0,0.00404605]
[1743698670262,1.41709075,82082.0,82081.0,5e-08]
[1743698670469,1.02747075,82082.0,82081.0,5e-08]
[1743698671502,0.90574835,82082.0,82081.0,5e-08]
[1743698671749,0.8862075,82082.0,82081.0,5e-08]
[1743698672332,0.76334453,82082.0,82081.0,5e-08]
[1743698672706,0.61834453,82082.0,82081.0,5e-08]
[1743698672942,0.76334453,82082.0,82081.0,5e-08]
[1743698673145,0.61834453,82082.0,82081.0,5e-08]
[1743698673342,0.27834453,82082.0,82081.0,5e-08]
[1743698673557,0.26900208,82082.0,82081.0,5e-08]
[1743698673787,0.60900208,82082.0,82081.0,5e-08]
[1743698674541,0.70703519,82082.0,82081.0,5e-08]
[1743698674739,0.70703519,82082.0,82059.0,0.243726]
[1743698674740,0.012187,82052.0,82043.0,0.0466]
[1743698674938,0.595934,82052.0,82051.0,0.00404605]
[1743698675919,0.583747,82052.0,82051.0,0.00404605]
[1743698676247,0.595934,82052.0,82051.0,0.00404605]
[1743698680561,0.740934,82052.0,82051.0,5e-08]
[1743698680791,0.87837782,82052.0,82051.0,5e-08]
[1743698681018,0.86383697,82052.0,82051.0,5e-08]
[1743698681222,0.52383697,82052.0,82051.0,5e-08]
[1743698681628,0.64673465,82052.0,82051.0,5e-08]
[1743698681835,0.52383697,82052.0,82051.0,5e-08]
[1743698682793,0.23884761,82052.0,82051.0,5e-08]
[1743698683119,0.49478161,82052.0,82051.0,5e-08]
[1743698683317,0.83478161,82052.0,82051.0,5e-08]
[1743698683549,0.84932246,82052.0,82051.0,5e-08]
[1743698684126,0.012191,82023.0,82022.0,0.0476]
[1743698684265,0.012191,82023.0,82022.0,0.04806106]
[1743698684266,0.256025,82023.0,82022.0,0.04806106]
[1743698684475,0.243834,82023.0,82022.0,0.04806106]
[1743698684712,0.256025,82023.0,82022.0,0.04806106]
[1743698685102,0.243834,82023.0,82022.0,0.04806106]
[1743698694128,0.256025,82023.0,82022.0,0.00046106]
[1743698694447,0.25305327,82023.0,82022.0,0.00046106]
[1743698694959,0.243834,82023.0,82022.0,0.00046106]
[1743698696602,0.243827,82026.0,82022.0,0.12336403]
[1743698696809,0.243828,82025.0,82023.0,0.12290297]
[1743698697049,0.243831,82024.0,82023.0,0.12290297]
[1743698697729,0.243828,82025.0,82023.0,0.12290297]
[1743698697929,0.012188,82043.0,82026.0,0.012191]
[1743698698160,0.243801,82035.0,82027.0,0.28013397]
[1743698698335,0.012188,82043.0,82032.0,0.01219]
[1743698698530,0.012188,82043.0,82027.0,0.51176397]
[1743698698531,0.243813,82031.0,82027.0,0.51176397]
[1743698698738,0.34,82039.0,82028.0,0.243818]
[1743698698739,0.243807,82032.0,82028.0,0.243818]
[1743698698939,0.243811,82031.0,82028.0,0.12290297]
[1743698699142,0.243807,82032.0,82028.0,0.36672097]
[1743698699432,0.583788,82039.0,82032.0,0.01219]
[1743698699642,0.34,82041.0,82032.0,0.12290297]
[1743698699850,0.243796,82036.0,82032.0,0.36670997]
[1743698700050,0.243796,82036.0,82032.0,0.12290297]
[1743698700317,0.243798,82037.0,82032.0,0.12290297]
[1743698700468,0.243798,82037.0,82027.0,0.14504]
[1743698700469,0.012189,82037.0,82027.0,0.14504]
[1743698700666,0.243811,82031.0,82028.0,0.12290297]
[1743698701200,0.243814,82030.0,82028.0,0.12290297]
[1743698701375,0.243811,82031.0,82028.0,0.12290297]
[1743698701580,0.243782,82041.0,82028.0,0.12290297]
[1743698701784,0.012184,82074.0,82055.0,0.012186]
[1743698701961,0.012186,82059.0,82048.0,0.012187]
[1743698702160,0.243735,82057.0,82049.0,0.26794297]
[1743698702436,0.243735,82057.0,82024.0,0.24383]
[1743698702437,0.243786,82039.0,82024.0,0.24383]
[1743698702710,0.012188,82042.0,82035.0,0.012189]
[1743698702711,0.243779,82042.0,82035.0,0.012189]
[1743698702843,0.243786,82039.0,82038.0,0.1488505]
[1743698703048,0.255975,82039.0,82038.0,0.1488505]
[1743698703899,0.595975,82039.0,82038.0,0.0038105]
[1743698704284,0.012189,82038.0,82037.0,0.00046106]
[1743698704825,0.34,82039.0,82037.0,0.00046106]
[1743698705093,0.255978,82038.0,82037.0,0.00046106]
[1743698705913,0.595978,82038.0,82037.0,0.00046106]
[1743698707888,0.583789,82038.0,82037.0,0.00046106]
[1743698708616,0.595978,82038.0,82037.0,0.00046106]
[1743698709603,1.238686,82038.0,82037.0,0.00046106]
[1743698709800,1.37612982,82038.0,82037.0,0.00046106]
[1743698710230,1.42272982,82038.0,82037.0,0.00046106]
[1743698711176,1.19866282,82038.0,82037.0,0.00046106]
[1743698711385,0.88327582,82038.0,82037.0,0.00046106]
[1743698711594,0.595978,82038.0,82037.0,0.00046106]
[1743698713150,1.48922072,82038.0,82037.0,0.00046106]
[1743698713752,1.53692072,82038.0,82037.0,0.00046106]
[1743698714635,1.21068585,82038.0,82037.0,0.00046106]
[1743698714821,0.595978,82038.0,82037.0,0.00046106]
[1743698715799,0.243787,82039.0,82037.0,0.00046106]
[1743698716000,0.595978,82038.0,82037.0,0.00046106]
[1743698716237,0.255978,82038.0,82037.0,0.00046106]
[1743698716601,0.255969,82041.0,82037.0,0.00046106]
[1743698716602,0.34,82041.0,82037.0,0.00046106]
[1743698716806,0.34,82039.0,82037.0,0.00046106]
[1743698717054,0.243768,82046.0,82037.0,0.00046106]
[1743698717263,0.243771,82045.0,82041.0,0.012189]
[1743698717456,0.34,82045.0,82042.0,0.243775]
[1743698717652,0.34,82045.0,82044.0,0.255959]
[1743698717873,0.34,82045.0,82040.0,0.012189]
[1743698718104,0.255952,82047.0,82043.0,0.243774]
[1743698718298,0.34,82046.0,82043.0,0.243774]
[1743698718473,0.243744,82053.0,82048.0,0.243759]
[1743698718674,0.34,82051.0,82049.0,0.145]
[1743698718885,0.25594,82050.0,82049.0,0.145]
[1743698720070,0.012189,82041.0,82037.0,0.00046106]
[1743698720279,0.595978,82038.0,82037.0,0.00046106]
[1743698720681,1.189629,82038.0,82037.0,0.00046106]
[1743698721133,1.189629,82038.0,82037.0,6e-08]
[1743698721134,1.23339597,82038.0,82037.0,6e-08]
[1743698721308,0.8563195,82038.0,82037.0,6e-08]
[1743698721510,0.8613195,82038.0,82037.0,6e-08]
[1743698722155,0.73342182,82038.0,82037.0,6e-08]
[1743698723317,0.71888097,82038.0,82037.0,6e-08]
[1743698723521,0.595978,82038.0,82037.0,6e-08]
[1743698725878,0.73342182,82038.0,82037.0,6e-08]
[1743698726050,0.73842182,82038.0,82037.0,6e-08]
[1743698726398,0.8613195,82038.0,82037.0,6e-08]
[1743698727363,0.73842182,82038.0,82037.0,6e-08]
[1743698729000,0.73342182,82038.0,82037.0,6e-08]
[1743698731563,0.96122182,82038.0,82037.0,6e-08]
[1743698731718,1.00782182,82038.0,82037.0,6e-08]
[1743698732331,0.696028,82022.0,82021.0,6e-08]
[1743698732530,1.00847182,82022.0,82021.0,9.1e-07]
[1743698732856,1.05667182,82022.0,82021.0,9.1e-07]
[1743698734319,1.05667182,82022.0,82021.0,4.091e-05]
[1743698734829,1.05767182,82022.0,82021.0,4.091e-05]
[1743698735076,1.1805695,82022.0,82021.0,4.091e-05]
[1743698735305,1.02767182,82022.0,82021.0,4.091e-05]
[1743698735538,2.36319082,82022.0,82021.0,4.091e-05]
[1743698735765,3.71710882,82022.0,82021.0,4.091e-05]
[1743698736047,3.63003482,82022.0,82021.0,4.091e-05]
[1743698736293,3.7529325,82022.0,82021.0,4.091e-05]
[1743698736994,3.3510645,82022.0,82021.0,4.091e-05]
[1743698737714,1.1323695,82022.0,82021.0,4.091e-05]
[1743698737985,5.0367755,82022.0,82021.0,4.091e-05]
[1743698738235,5.0460081,82022.0,82021.0,4.091e-05]
[1743698739493,4.9518751,82022.0,82021.0,4.091e-05]
[1743698739738,2.50515042,82022.0,82021.0,4.091e-05]
[1743698739981,2.13084542,82022.0,82021.0,4.091e-05]
[1743698741347,1.95516242,82022.0,82021.0,4.091e-05]
[1743698742287,1.76538239,82022.0,82021.0,4.091e-05]
[1743698742515,1.50088339,82022.0,82021.0,4.091e-05]
[1743698742930,1.62378107,82022.0,82021.0,4.091e-05]
[1743698743145,1.50088339,82022.0,82021.0,4.091e-05]
[1743698743588,1.49988339,82022.0,82021.0,4.091e-05]
[1743698744986,1.16298642,82022.0,82021.0,4.091e-05]
[1743698745192,0.72163957,82022.0,82021.0,4.091e-05]
[1743698746401,0.73618042,82022.0,82021.0,4.091e-05]
[1743698746574,0.98198107,82022.0,82021.0,4.091e-05]
[1743698747004,0.85908339,82022.0,82021.0,4.091e-05]
[1743698749186,0.84454254,82022.0,82021.0,4.091e-05]
[1743698749724,0.72163957,82022.0,82021.0,4.091e-05]
[1743698750047,0.70654057,82022.0,82021.0,4.091e-05]
[1743698751100,0.82944354,82022.0,82021.0,4.091e-05]
[1743698751300,0.95234122,82022.0,82021.0,4.091e-05]
[1743698751957,0.84398439,82022.0,82021.0,4.091e-05]
[1743698752158,2.53391939,82022.0,82021.0,4.091e-05]
[1743698753888,2.53891939,82022.0,82021.0,4.091e-05]
[1743698754060,2.58431939,82022.0,82021.0,4.091e-05]
[1743698754260,2.15186239,82022.0,82021.0,4.091e-05]
[1743698754470,1.72520439,82022.0,82021.0,4.091e-05]
[1743698756116,1.84810207,82022.0,82021.0,4.091e-05]
[1743698756904,0.87282207,82022.0,82021.0,4.091e-05]
[1743698757284,4.77722807,82022.0,82021.0,4.091e-05]
[1743698757888,4.80222807,82022.0,82021.0,4.091e-05]
[1743698758165,0.1,82013.0,82000.0,9.1e-07]
[1743698758364,0.61063385,82001.0,82000.0,0.0001392]
[1743698758493,1.44965882,82001.0,82000.0,0.0001392]
[1743698760619,1.45901127,82001.0,82000.0,0.0001392]
[1743698761477,1.47214616,82001.0,82000.0,0.0001392]
[1743698761854,1.47200717,82001.0,82000.0,0.0001392]
[1743698762637,1.31638917,82001.0,82000.0,0.0001392]
[1743698764165,1.19111417,82001.0,82000.0,0.0001392]
[1743698764367,0.61844135,82001.0,82000.0,0.0001392]
[1743698764830,1.59538985,82001.0,82000.0,2e-07]
[1743698765142,0.87878285,82001.0,82000.0,2e-07]